bitfinex/quotes_BTCUSD_20250726
["timestamp","ask_amount","ask_price","bid_price","bid_amount"]
[1753568931229,5.9691797,118240.0,118230.0,0.00068554]
[1753568931436,6.25033472,118240.0,118230.0,0.00068554]
[1753568931654,6.25033143,118240.0,118230.0,0.00068554]
[1753568931864,6.31497097,118240.0,118230.0,0.00068554]
[1753568932079,6.25033143,118240.0,118230.0,0.00068554]
[1753568932295,6.23513143,118240.0,118230.0,0.00068554]
[1753568932503,6.21913143,118240.0,118230.0,0.00068554]
[1753568933147,5.93797617,118240.0,118230.0,0.00068554]
[1753568933361,6.21913119,118240.0,118230.0,0.00068554]
[1753568933781,6.16913119,118240.0,118230.0,0.00068554]
[1753568933991,6.21913119,118240.0,118230.0,0.00068554]
[1753568935133,6.16913119,118240.0,118230.0,0.00068554]
[1753568936223,5.88797617,118240.0,118230.0,0.00068554]
[1753568936432,6.16913119,118240.0,118230.0,0.00068554]
[1753568936871,5.88797617,118240.0,118230.0,0.00068554]
[1753568937087,6.16913119,118240.0,118230.0,0.00068554]
[1753568937915,6.16911855,118240.0,118230.0,0.00068554]
[1753568938137,5.88796353,118240.0,118230.0,0.00068554]
[1753568938350,6.16911855,118240.0,118230.0,0.00068554]
[1753568938570,5.88796353,118240.0,118230.0,0.00068554]
[1753568938762,6.16911855,118240.0,118230.0,0.00068554]
[1753568939416,6.1770229,118240.0,118230.0,0.00068554]
[1753568940594,6.1770229,118240.0,118230.0,0.00387554]
[1753568941010,6.3592229,118240.0,118230.0,0.00068554]
[1753568941619,6.06188015,118240.0,118230.0,0.00068554]
[1753568941867,6.32703517,118240.0,118230.0,0.00068554]
[1753568942484,6.04588015,118240.0,118230.0,0.00068554]
[1753568942713,6.32703517,118240.0,118230.0,0.00068554]
[1753568943338,6.04588015,118240.0,118230.0,0.00068554]
[1753568943576,6.15221517,118240.0,118230.0,0.02793554]
[1753568943784,6.30381517,118240.0,118230.0,0.02793554]
[1753568944613,6.02266015,118240.0,118230.0,0.02793554]
[1753568944817,6.30381517,118240.0,118230.0,0.02793554]
[1753568945814,6.02266015,118240.0,118230.0,0.02793554]
[1753568946242,6.30381517,118240.0,118230.0,0.02793554]
[1753568946458,6.02266015,118240.0,118230.0,0.02793554]
[1753568946674,1.30381517,118240.0,118230.0,0.02793554]
[1753568947134,6.30381517,118240.0,118230.0,0.02793554]
[1753568947575,6.02266015,118240.0,118230.0,0.02793554]
[1753568947750,6.30381517,118240.0,118230.0,0.02793554]
[1753568948072,6.30382187,118240.0,118230.0,0.02793554]
[1753568949520,6.32206295,118240.0,118230.0,0.02793554]
[1753568950389,6.30382187,118240.0,118230.0,0.02793554]
[1753568950626,6.32206462,118240.0,118230.0,0.02793554]
[1753568952286,6.28905368,118240.0,118230.0,0.02793554]
[1753568953066,6.00789866,118240.0,118230.0,0.02793554]
[1753568953287,6.28905368,118240.0,118230.0,0.02793554]
[1753568953683,6.00789866,118240.0,118230.0,0.02793554]
[1753568953898,6.28905368,118240.0,118230.0,0.02793554]
[1753568954103,6.31465645,118240.0,118230.0,0.02793554]
[1753568955865,5.5746842,118230.0,118220.0,0.0318]
[1753568956071,5.75458106,118230.0,118220.0,0.03389]
[1753568956273,5.75464789,118230.0,118220.0,0.03389]
[1753568956895,6.07207141,118230.0,118220.0,0.03389]
[1753568957301,6.07307141,118230.0,118220.0,0.03389]
[1753568957868,6.07307141,118230.0,118220.0,0.06114]
[1753568959316,6.07308915,118230.0,118220.0,0.06114]
[1753568961981,5.75666563,118230.0,118220.0,0.06114]
[1753568962278,6.07311274,118230.0,118220.0,0.06114]
[1753568963075,1.07311274,118230.0,118220.0,0.06114]
[1753568963289,6.07311274,118230.0,118220.0,0.06114]
[1753568963510,6.09756274,118230.0,118220.0,0.06114]
[1753568964223,5.78113922,118230.0,118220.0,0.06092116]
[1753568964446,6.09756274,118230.0,118220.0,0.06092116]
[1753568964930,6.09756288,118230.0,118220.0,0.06092116]
[1753568967349,5.78113936,118230.0,118220.0,0.06092116]
[1753568967557,6.08962554,118230.0,118220.0,0.06092116]
[1753568968602,5.77320202,118230.0,118220.0,0.06092116]
[1753568969196,6.09756293,118230.0,118220.0,0.06092116]
[1753568969620,5.78316941,118230.0,118220.0,0.06092116]
[1753568969823,6.09959293,118230.0,118220.0,0.06092116]
[1753568970164,5.78316941,118230.0,118220.0,0.06092116]
[1753568970374,6.09959293,118230.0,118220.0,0.06092116]
[1753568971481,5.78316941,118230.0,118220.0,0.06092116]
[1753568971779,6.09959293,118230.0,118220.0,0.06092116]
[1753568973045,5.78316941,118230.0,118220.0,0.06092116]
[1753568973248,6.09959293,118230.0,118220.0,0.06092116]
[1753568973861,6.06982772,118230.0,118220.0,0.06092116]
[1753568974162,6.09959324,118230.0,118220.0,0.06092116]
[1753568974373,6.08570266,118230.0,118220.0,0.06092116]
[1753568974552,6.09364013,118230.0,118220.0,0.06092116]
[1753568974705,6.06982772,118230.0,118220.0,0.06092116]
[1753568975378,6.07578082,118230.0,118220.0,0.06092116]
[1753568975607,6.06982772,118230.0,118220.0,0.06092116]
[1753568976053,6.09959313,118230.0,118220.0,0.06092116]
[1753568976463,6.09959313,118230.0,118220.0,0.03686116]
[1753568976962,6.09959313,118230.0,118220.0,0.03367116]
[1753568977592,1.09959313,118230.0,118220.0,0.03367116]
[1753568977802,6.09959313,118230.0,118220.0,0.03667116]
[1753568978491,6.09959313,118230.0,118220.0,0.02157116]
[1753568978698,6.0995931,118230.0,118220.0,0.02157116]
[1753568979337,5.78316958,118230.0,118220.0,0.02157116]
[1753568979517,6.0995931,118230.0,118220.0,0.02157116]
[1753568979770,6.0995931,118230.0,118220.0,0.01648116]
[1753568981571,6.0995929,118230.0,118220.0,0.01648116]
[1753568985055,5.78316938,118230.0,118220.0,0.01648116]
[1753568985294,6.0995929,118230.0,118220.0,0.03298116]
[1753568985754,6.08371813,118230.0,118220.0,0.03298116]
[1753568985980,6.09959293,118230.0,118220.0,0.03298116]
[1753568986235,5.78316941,118230.0,118220.0,0.03298116]
[1753568986472,6.09959293,118230.0,118220.0,0.03298116]
[1753568987173,6.09959295,118230.0,118220.0,0.03298116]
[1753568988258,0.17763477,118220.0,118210.0,0.05725]
[1753568988468,0.32443477,118220.0,118210.0,0.05927853]
[1753568991568,0.34949477,118220.0,118210.0,0.05927853]
[1753568991594,0.68179365,118220.0,118210.0,0.03642853]
[1753568991829,0.36537013,118220.0,118210.0,0.03642853]
[1753568992062,0.68179365,118220.0,118210.0,0.05927853]
[1753568992497,0.36537013,118220.0,118210.0,0.05927853]
[1753568992738,0.68179365,118220.0,118210.0,0.05927853]
[1753568995188,0.36537013,118220.0,118210.0,0.05927853]
[1753568995695,0.68179365,118220.0,118210.0,0.05927853]
[1753568999873,0.36537013,118220.0,118210.0,0.05927853]
[1753569000081,0.53499365,118220.0,118210.0,0.05927853]
[1753569000286,0.21857013,118220.0,118210.0,0.03144853]
[1753569000547,0.68175365,118220.0,118210.0,0.03144853]
[1753569000730,0.68175365,118220.0,118210.0,0.00024853]
[1753569001294,0.36533013,118220.0,118210.0,0.00024853]
[1753569001501,0.68175365,118220.0,118210.0,0.00024853]
[1753569001941,0.36533013,118220.0,118210.0,0.00024853]
[1753569002388,0.81870997,118220.0,118210.0,0.00024853]
[1753569002624,5.81870997,118220.0,118210.0,0.00024853]
[1753569003089,6.16466067,118220.0,118210.0,0.00024853]
[1753569003518,6.17259459,118220.0,118210.0,0.00024853]
[1753569003731,6.53901811,118220.0,118210.0,1e-08]
[1753569003933,6.22259459,118220.0,118210.0,1e-08]
[1753569004585,6.5572908,118220.0,118210.0,1e-08]
[1753569004800,6.6072908,118220.0,118210.0,1e-08]
[1753569004998,6.62666029,118220.0,118210.0,1e-08]
[1753569005642,6.62766029,118220.0,118210.0,1e-08]
[1753569006003,6.62966029,118220.0,118210.0,1e-08]
[1753569006211,6.62666029,118220.0,118210.0,1e-08]
[1753569006641,6.63166029,118220.0,118210.0,1e-08]
[1753569006866,6.63566029,118220.0,118210.0,1e-08]
[1753569008648,1.63566029,118220.0,118210.0,1e-08]
[1753569008856,6.63566029,118220.0,118210.0,1e-08]
[1753569009503,1.63566029,118220.0,118210.0,1e-08]
[1753569009715,6.63566029,118220.0,118210.0,1e-08]
[1753569010589,6.63560504,118220.0,118210.0,1e-08]
[1753569011017,6.5658121,118220.0,118210.0,1e-08]
[1753569012538,1.5658121,118220.0,118210.0,1e-08]
[1753569012744,6.5658121,118220.0,118210.0,1e-08]
[1753569012952,6.54644261,118220.0,118210.0,1e-08]
[1753569013156,6.26491556,118220.0,118210.0,1e-08]
[1753569013371,6.3295551,118220.0,118210.0,1e-08]
[1753569013586,5.98338851,118220.0,118210.0,1e-08]
[1753569013799,6.26491556,118220.0,118210.0,1e-08]
[1753569015007,6.24664287,118220.0,118210.0,1e-08]
[1753569015215,6.26485236,118220.0,118210.0,1e-08]
[1753569016455,6.26483426,118220.0,118210.0,1e-08]
[1753569017058,5.98330721,118220.0,118210.0,1e-08]
[1753569017283,6.26483426,118220.0,118210.0,1e-08]
[1753569019920,6.26482913,118220.0,118210.0,1e-08]
[1753569020794,6.30962262,118220.0,118210.0,1e-08]
[1753569021013,6.37426216,118220.0,118210.0,1e-08]
[1753569021232,6.30962262,118220.0,118210.0,1e-08]
[1753569022056,6.33521922,118220.0,118210.0,1e-08]
[1753569022498,6.35797467,118220.0,118210.0,1e-08]
[1753569022907,6.07644762,118220.0,118210.0,1e-08]
[1753569023143,6.35797467,118220.0,118210.0,1e-08]
[1753569024019,0.72612469,118200.0,118190.0,0.09413754]
[1753569024226,5.98701217,118200.0,118190.0,0.09617609]
[1753569024437,6.26853922,118200.0,118190.0,0.09617609]
[1753569025118,6.29396222,118200.0,118190.0,0.04434855]
[1753569025330,6.01443517,118200.0,118190.0,0.04434855]
[1753569025549,6.29596222,118200.0,118190.0,0.04434855]
[1753569026224,6.01543517,118200.0,118190.0,0.04434855]
[1753569026437,6.29696222,118200.0,118190.0,0.04434855]
[1753569026648,6.29696222,118200.0,118190.0,0.06004855]
[1753569026856,5.86867517,118200.0,118190.0,0.06004855]
[1753569027069,5.62539517,118200.0,118190.0,0.12767609]
[1753569027294,5.43613721,118200.0,118190.0,0.40920314]
[1753569027534,5.67584469,118200.0,118190.0,0.40920314]
[1753569027755,0.33584469,118200.0,118190.0,0.40920314]
[1753569027972,0.18912469,118200.0,118190.0,0.40920314]
[1753569028183,0.52912469,118200.0,118190.0,0.40920314]
[1753569028607,0.33584469,118200.0,118190.0,0.40920314]
[1753569029057,0.67584469,118200.0,118190.0,0.40920314]
[1753569029893,0.18912469,118200.0,118190.0,0.40920314]
[1753569030136,0.18912469,118200.0,118190.0,0.06004855]
[1753569030810,0.52912469,118200.0,118190.0,0.06004855]
[1753569031437,0.52912469,118200.0,118190.0,0.3415756]
[1753569031862,0.67580469,118200.0,118190.0,0.3415756]
[1753569032074,0.67580469,118200.0,118190.0,0.06004855]
[1753569033136,0.67580469,118200.0,118190.0,0.3415756]
[1753569033263,0.67580469,118200.0,118190.0,0.06004855]
[1753569033684,0.67580469,118200.0,118190.0,0.3415756]
[1753569035733,0.67580469,118200.0,118190.0,0.06004855]
[1753569036064,0.67580469,118200.0,118190.0,0.3415756]
[1753569036428,0.67576469,118200.0,118190.0,0.06004855]
[1753569037325,0.52912469,118200.0,118190.0,0.3415756]
[1753569037631,0.52912469,118200.0,118190.0,0.56689546]
[1753569037854,0.52066482,118200.0,118190.0,0.20668855]
[1753569038079,0.52066482,118200.0,118190.0,0.4882156]
[1753569038515,0.52066482,118200.0,118190.0,0.65743465]
[1753569038728,0.51966482,118200.0,118190.0,0.65743465]
[1753569041207,0.51966482,118200.0,118190.0,0.6658956]
[1753569041643,0.35691996,118200.0,118190.0,0.6658956]
[1753569042080,0.01791996,118200.0,118190.0,0.6658956]
[1753569042314,0.01791996,118200.0,118190.0,0.65743465]
[1753569042556,0.01691996,118200.0,118190.0,0.65743465]
[1753569042776,0.18612469,118200.0,118190.0,0.3759076]
[1753569042997,0.18612469,118200.0,118190.0,0.65843465]
[1753569043451,0.18612469,118200.0,118190.0,0.3769076]
[1753569043892,0.18612469,118200.0,118190.0,0.65843465]
[1753569044106,0.18612469,118200.0,118190.0,0.3769076]
[1753569044274,0.18612469,118200.0,118190.0,0.65843465]
[1753569045273,0.18612469,118200.0,118190.0,0.3769076]
[1753569045484,0.18612469,118200.0,118190.0,0.65843465]
[1753569046117,0.18612469,118200.0,118190.0,0.3769076]
[1753569046324,0.18612469,118200.0,118190.0,0.65843465]
[1753569046543,0.17766482,118200.0,118190.0,0.65843465]
[1753569048975,0.17766482,118200.0,118190.0,0.3769076]
[1753569049156,0.17766482,118200.0,118190.0,0.6668956]
[1753569049569,0.17766482,118200.0,118190.0,0.67535648]
[1753569049984,0.17766482,118200.0,118190.0,0.65843465]
[1753569050201,0.17766482,118200.0,118190.0,0.6668956]
[1753569050408,0.17766482,118200.0,118190.0,0.65843465]
[1753569051036,0.17766482,118200.0,118190.0,0.6668956]
[1753569051821,0.17766482,118200.0,118190.0,0.65843465]
[1753569052264,0.17766482,118200.0,118190.0,0.6668956]
[1753569052749,0.17766482,118200.0,118190.0,0.75983378]
[1753569052981,0.01691996,118200.0,118190.0,0.75983378]
[1753569053416,0.02538019,118200.0,118190.0,0.76829458]
[1753569053882,0.01691996,118200.0,118190.0,0.76829458]
[1753569054132,0.51766181,118210.0,118200.0,0.19970473]
[1753569054371,0.52612125,118210.0,118200.0,0.48321178]
[1753569054604,0.52612125,118210.0,118200.0,0.51029178]
[1753569054832,0.52612125,118210.0,118200.0,0.5451878]
[1753569055273,0.51766181,118210.0,118200.0,0.22876473]
[1753569055493,0.51866181,118210.0,118200.0,0.5451878]
[1753569055935,0.51866181,118210.0,118200.0,0.37598307]
[1753569057104,0.51866181,118210.0,118200.0,0.05956]
[1753569057311,0.51866181,118210.0,118200.0,0.37598307]
[1753569059024,0.54241181,118210.0,118200.0,0.05956]
[1753569059237,0.54241181,118210.0,118200.0,0.37598307]
[1753569064724,0.54241181,118210.0,118200.0,0.05956]
[1753569065355,0.54241181,118210.0,118200.0,0.37598307]
[1753569067388,0.54241181,118210.0,118200.0,0.05956]
[1753569067619,0.54454181,118210.0,118200.0,0.37598307]
[1753569072472,0.54241181,118210.0,118200.0,0.37598307]
[1753569074605,0.54241181,118210.0,118200.0,0.05956]
[1753569074844,0.54241181,118210.0,118200.0,0.37598307]
[1753569077458,0.54241181,118210.0,118200.0,0.05956]
[1753569077709,0.54241181,118210.0,118200.0,0.37598307]
[1753569079223,0.54454181,118210.0,118200.0,0.37598307]
[1753569084306,0.52712111,118210.0,118200.0,0.61606896]
[1753569085028,0.52712111,118210.0,118200.0,0.93249203]
[1753569085267,0.52712111,118210.0,118200.0,0.62452919]
[1753569085512,0.52712111,118210.0,118200.0,0.61606896]
[1753569085724,0.52612111,118210.0,118200.0,0.61706896]
[1753569085956,0.01691839,118210.0,118200.0,0.62552905]
[1753569086201,0.02537783,118210.0,118200.0,0.62552912]
[1753569086418,0.02537783,118210.0,118200.0,0.61706896]
[1753569086648,0.02537783,118210.0,118200.0,0.62552919]
[1753569086895,0.02537783,118210.0,118200.0,0.61706896]
[1753569087166,0.02537783,118210.0,118200.0,0.62552919]
[1753569088159,0.03383735,118210.0,118200.0,0.62552919]
[1753569088827,0.03383735,118210.0,118200.0,0.61706896]
[1753569089043,0.03383735,118210.0,118200.0,0.62552919]
[1753569089258,0.03383735,118210.0,118200.0,0.63398935]
[1753569089676,0.02537783,118210.0,118200.0,0.63398935]
[1753569089879,0.02537783,118210.0,118200.0,0.64244944]
[1753569090133,0.02537783,118210.0,118200.0,0.63398935]
[1753569091419,0.03383735,118210.0,118200.0,0.62552919]
[1753569091636,0.03383735,118210.0,118200.0,0.30064589]
[1753569091876,0.03383735,118210.0,118200.0,0.55464803]
[1753569092100,0.03383735,118210.0,118200.0,0.5461878]
[1753569092331,0.03383735,118210.0,118200.0,0.55464803]
[1753569093007,0.03383735,118210.0,118200.0,0.56310819]
[1753569094351,0.02537783,118210.0,118200.0,0.56310819]
[1753569094739,0.02537783,118210.0,118200.0,0.55464803]
[1753569095343,0.03383735,118210.0,118200.0,0.55464803]
[1753569096524,0.02537783,118210.0,118200.0,0.56310819]
[1753569096736,0.02537783,118210.0,118200.0,0.64758549]
[1753569096921,0.02537783,118210.0,118200.0,0.65604558]
[1753569097076,0.02537783,118210.0,118200.0,0.64758549]
[1753569097425,0.02537783,118210.0,118200.0,0.33116242]
[1753569097625,0.03383735,118210.0,118200.0,0.63912533]
[1753569098092,0.02537783,118210.0,118200.0,0.65604558]
[1753569098318,0.02537783,118210.0,118200.0,0.64758549]
[1753569098779,0.03383735,118210.0,118200.0,0.64758549]
[1753569100475,0.02537776,118210.0,118200.0,0.97246858]
[1753569100691,0.01691839,118210.0,118200.0,0.96400856]
[1753569100898,0.02537783,118210.0,118200.0,0.65604558]
[1753569101107,0.01691839,118210.0,118200.0,0.65604558]
[1753569101325,0.01691839,118210.0,118200.0,0.6645056]
[1753569101537,0.02537783,118210.0,118200.0,0.65604558]
[1753569102191,0.02537783,118210.0,118200.0,0.64758549]
[1753569102848,0.01691839,118210.0,118200.0,0.57156828]
[1753569103069,0.02537776,118210.0,118200.0,0.57156828]
[1753569104520,0.02537776,118210.0,118200.0,0.5800283]
[1753569104944,0.00845887,118210.0,118200.0,0.89645137]
[1753569105158,0.00845887,118210.0,118200.0,0.98938812]
[1753569105371,0.00845887,118210.0,118200.0,1.07386542]
[1753569105590,0.34845844,118220.0,118210.0,0.20914986]
[1753569105806,0.36537526,118220.0,118210.0,0.56327223]
[1753569106018,0.37383442,118220.0,118210.0,0.23838994]
[1753569106257,0.37383442,118220.0,118210.0,0.56327245]
[1753569106479,0.37383442,118220.0,118210.0,0.6092112]
[1753569106711,0.37383442,118220.0,118210.0,0.60075168]
[1753569107141,0.36537598,118220.0,118210.0,0.60175168]
[1753569107359,0.36537598,118220.0,118210.0,0.6102112]
[1753569107638,0.36537598,118220.0,118210.0,0.60175168]
[1753569109112,0.36537598,118220.0,118210.0,0.6102112]
[1753569109364,0.36537598,118220.0,118210.0,0.28532861]
[1753569109598,0.36537598,118220.0,118210.0,0.60175168]
[1753569110003,0.36537598,118220.0,118210.0,0.6102112]
[1753569110148,0.36537598,118220.0,118210.0,0.60175168]
[1753569110581,0.36537598,118220.0,118210.0,0.61021112]
[1753569110755,0.36537598,118220.0,118210.0,0.6102112]
[1753569111374,0.35691696,118220.0,118210.0,0.61867035]
[1753569111621,0.36537569,118220.0,118210.0,0.75573112]
[1753569111834,0.36537569,118220.0,118210.0,0.44776742]
[1753569112077,0.36537569,118220.0,118210.0,0.70133293]
[1753569112290,0.36537569,118220.0,118210.0,0.38490986]
[1753569112605,0.37383449,118220.0,118210.0,0.69287349]
[1753569113177,0.39814449,118220.0,118210.0,0.69287349]
[1753569113740,0.38968612,118220.0,118210.0,0.69287349]
[1753569114197,0.36537612,118220.0,118210.0,0.69287349]
[1753569114586,0.38946612,118220.0,118210.0,0.69287349]
[1753569114801,0.55864223,118220.0,118210.0,0.69287349]
[1753569115599,0.55864223,118220.0,118210.0,0.37645042]
[1753569115802,0.55018364,118220.0,118210.0,0.69287349]
[1753569119460,0.54172491,118220.0,118210.0,0.69287349]
[1753569119663,0.54172491,118220.0,118210.0,0.37625042]
[1753569119890,0.54172491,118220.0,118210.0,0.69267349]
[1753569120957,0.54172491,118220.0,118210.0,0.72602509]
[1753569122317,0.54172491,118220.0,118210.0,0.69267349]
[1753569122805,0.53326611,118220.0,118210.0,0.06174]
[1753569123016,0.53326611,118220.0,118210.0,0.52340307]
[1753569123225,0.53326611,118220.0,118210.0,0.20698]
[1753569123428,0.53326611,118220.0,118210.0,0.52340307]
[1753569124390,0.53326611,118220.0,118210.0,0.37816307]
[1753569124594,0.53326611,118220.0,118210.0,0.52336307]
[1753569125179,0.53326611,118220.0,118210.0,0.20694]
[1753569125421,0.53326611,118220.0,118210.0,0.52332307]
[1753569126636,0.53326611,118220.0,118210.0,0.2069]
[1753569126854,0.53326611,118220.0,118210.0,0.52332307]
[1753569128887,0.53326611,118220.0,118210.0,0.37816307]
[1753569129090,0.53326611,118220.0,118210.0,0.52328307]
[1753569132358,0.53326611,118220.0,118210.0,0.37816307]
[1753569132559,0.53326611,118220.0,118210.0,0.52316307]
[1753569132764,0.53326611,118220.0,118210.0,0.20674]
[1753569132997,0.53326611,118220.0,118210.0,0.52316307]
[1753569133825,0.53524611,118220.0,118210.0,0.49166307]
[1753569134397,0.53524611,118220.0,118210.0,0.50776307]
[1753569136197,0.53524611,118220.0,118210.0,0.36276307]
[1753569136395,0.53524611,118220.0,118210.0,0.50764307]
[1753569136896,0.53524611,118220.0,118210.0,0.52314307]
[1753569137519,0.53524611,118220.0,118210.0,0.37826307]
[1753569137717,0.53524611,118220.0,118210.0,0.52314307]
[1753569138701,0.53524611,118220.0,118210.0,0.37826307]
[1753569138906,0.53326611,118220.0,118210.0,0.52310307]
[1753569139543,0.53326611,118220.0,118210.0,0.37826307]
[1753569139718,0.53326611,118220.0,118210.0,0.52306307]
[1753569142166,0.53326611,118220.0,118210.0,0.37826307]
[1753569142361,0.53326611,118220.0,118210.0,0.52302307]
[1753569143230,0.53326611,118220.0,118210.0,0.52294307]
[1753569145158,0.50917611,118220.0,118210.0,0.69213349]
[1753569145417,0.50917611,118220.0,118210.0,0.7281748]
[1753569145680,0.50917611,118220.0,118210.0,0.71971528]
[1753569146101,0.50917611,118220.0,118210.0,0.7281748]
[1753569146529,0.50917611,118220.0,118210.0,0.71971528]
[1753569146995,0.50917611,118220.0,118210.0,0.7281748]
[1753569147426,0.50917611,118220.0,118210.0,0.69213349]
[1753569148368,0.50917611,118220.0,118210.0,0.37571042]
[1753569148588,0.50917611,118220.0,118210.0,0.69213349]
[1753569149009,0.50917611,118220.0,118210.0,0.69197349]
[1753569150061,0.50917611,118220.0,118210.0,0.70043301]
[1753569150292,0.50917611,118220.0,118210.0,0.73185829]
[1753569150497,0.50917611,118220.0,118210.0,0.72339877]
[1753569150790,0.5345518,118220.0,118210.0,0.73185829]
[1753569151630,0.5345518,118220.0,118210.0,0.4069757]
[1753569151840,0.5345518,118220.0,118210.0,0.72339877]
[1753569152052,0.5345518,118220.0,118210.0,0.73185829]
[1753569152274,0.54301024,118220.0,118210.0,0.58733829]
[1753569152495,0.53455201,118220.0,118210.0,0.72335877]
[1753569153112,0.55915201,118220.0,118210.0,0.72335877]
[1753569154085,0.55915201,118220.0,118210.0,0.57887877]
[1753569154304,0.55915201,118220.0,118210.0,0.72327877]
[1753569154955,0.55915201,118220.0,118210.0,0.69185349]
[1753569159063,0.55069357,118220.0,118210.0,0.69185349]
[1753569160485,0.54223491,118220.0,118210.0,0.67635349]
[1753569160703,0.54421491,118220.0,118210.0,0.67635349]
[1753569161111,0.54421491,118220.0,118210.0,0.66025349]
[1753569162628,0.54421491,118220.0,118210.0,0.49082307]
[1753569165757,0.54421491,118220.0,118210.0,0.34666307]
[1753569165979,0.54421491,118220.0,118210.0,0.49070307]
[1753569168628,0.89442798,118220.0,118210.0,0.001]
[1753569168862,0.73941393,118220.0,118210.0,0.001]
[1753569169124,1.17007474,118220.0,118210.0,0.001]
[1753569169380,6.17007474,118220.0,118210.0,1e-08]
[1753569169653,6.60477116,118220.0,118210.0,1e-08]
[1753569169862,6.58019216,118220.0,118210.0,1e-08]
[1753569170072,6.31476909,118220.0,118210.0,1e-08]
[1753569170737,0.54357371,118200.0,118190.0,4.855e-05]
[1753569170971,1.13687617,118200.0,118190.0,4.855e-05]
[1753569171450,1.16462617,118200.0,118190.0,4.855e-05]
[1753569172104,0.8502031,118200.0,118190.0,4.855e-05]
[1753569172333,0.83433101,118200.0,118190.0,4.855e-05]
[1753569172569,0.83633101,118200.0,118190.0,4.855e-05]
[1753569180010,1.15275408,118200.0,118190.0,4.855e-05]
[1753569183259,0.83633101,118200.0,118190.0,4.855e-05]
[1753569183786,1.15275408,118200.0,118190.0,4.855e-05]
[1753569186538,1.16854798,118200.0,118190.0,4.855e-05]
[1753569188757,1.16539798,118200.0,118190.0,4.855e-05]
[1753569189210,0.84897491,118200.0,118190.0,4.855e-05]
[1753569190425,0.84898542,118200.0,118190.0,4.855e-05]
[1753569191656,0.8489896,118200.0,118190.0,4.855e-05]
[1753569191866,1.16856267,118200.0,118190.0,4.855e-05]
[1753569193407,1.17449504,118200.0,118190.0,4.855e-05]
[1753569196321,1.18241299,118200.0,118190.0,4.855e-05]
[1753569201571,6.49883606,118200.0,118190.0,4.855e-05]
[1753569202037,6.18241299,118200.0,118190.0,4.855e-05]
[1753569208396,6.49883606,118200.0,118190.0,4.855e-05]
[1753569208821,5.89141292,118200.0,118190.0,4.855e-05]
[1753569209034,6.54252894,118200.0,118190.0,1e-08]
[1753569210589,6.22610587,118200.0,118190.0,1e-08]
[1753569210823,6.54252894,118200.0,118190.0,1e-08]
[1753569211967,6.54254128,118200.0,118190.0,1e-08]
[1753569215088,6.59258517,118200.0,118190.0,1e-08]
[1753569217860,5.20362097,118170.0,118160.0,0.02755]
[1753569218073,6.10882889,118170.0,118160.0,0.00325855]
[1753569218264,6.11085889,118170.0,118160.0,0.00325855]
[1753569218472,6.13516889,118170.0,118160.0,0.00539855]
[1753569218785,6.13516889,118170.0,118160.0,0.02973855]
[1753569219129,6.13516889,118170.0,118160.0,0.00539855]
[1753569219330,6.12923652,118170.0,118160.0,0.00939855]
[1753569220365,6.12923652,118170.0,118160.0,0.00739855]
[1753569220562,6.12923652,118170.0,118160.0,0.00539855]
[1753569220782,6.1292275,118170.0,118160.0,0.00539855]
[1753569221209,6.1292275,118170.0,118160.0,0.00639855]
[1753569222255,6.11338134,118170.0,118160.0,0.00639855]
[1753569222477,6.12922558,118170.0,118160.0,0.00639855]
[1753569222888,6.12922558,118170.0,118160.0,0.03073855]
[1753569223089,6.12719558,118170.0,118160.0,0.03073855]
[1753569223298,6.11135134,118170.0,118160.0,0.03073855]
[1753569226487,6.11341134,118170.0,118160.0,0.03073855]
[1753569227275,6.12951134,118170.0,118160.0,0.00124855]
[1753569227493,6.14541134,118170.0,118160.0,0.00124855]
[1753569227818,6.12951134,118170.0,118160.0,0.00124855]
[1753569230502,6.11341134,118170.0,118160.0,0.00124855]
[1753569231158,5.79698827,118170.0,118160.0,0.00124855]
[1753569231378,6.11341134,118170.0,118160.0,0.00124855]
[1753569232684,6.12925956,118170.0,118160.0,0.00124855]
[1753569233816,1.12925956,118170.0,118160.0,0.00124855]
[1753569234003,6.12925956,118170.0,118160.0,0.00124855]
[1753569234305,5.81283649,118170.0,118160.0,0.00124855]
[1753569234510,6.12925956,118170.0,118160.0,0.00124855]
[1753569235797,6.12926467,118170.0,118160.0,0.00124855]
[1753569237314,5.8128416,118170.0,118160.0,0.00124855]
[1753569237544,6.12926467,118170.0,118160.0,0.00124855]
[1753569237760,6.12926467,118170.0,118160.0,0.00641855]
[1753569237964,6.12926467,118170.0,118160.0,0.02914855]
[1753569238955,5.8128416,118170.0,118160.0,0.00641855]
[1753569239152,6.12926467,118170.0,118160.0,0.00124855]
[1753569240002,5.8128416,118170.0,118160.0,0.00024855]
[1753569240217,6.12926467,118170.0,118160.0,0.00024855]
[1753569240424,6.13026467,118170.0,118160.0,0.00024855]
[1753569240628,6.13026467,118170.0,118160.0,0.00541855]
[1753569241441,6.13621506,118170.0,118160.0,0.00541855]
[1753569242065,5.81979199,118170.0,118160.0,0.00541855]
[1753569242283,6.13621506,118170.0,118160.0,0.00541855]
[1753569244916,6.13621506,118170.0,118160.0,0.00237855]
[1753569245166,6.13621506,118170.0,118160.0,0.00024855]
[1753569246320,5.81979199,118170.0,118160.0,0.36007162]
[1753569246556,5.81979199,118170.0,118160.0,0.37667162]
[1753569246782,5.81773199,118170.0,118160.0,0.06024855]
[1753569247271,6.13415506,118170.0,118160.0,0.06024855]
[1753569247491,6.14209532,118170.0,118160.0,0.06024855]
[1753569247951,1.14209532,118170.0,118160.0,0.06024855]
[1753569248192,5.82567225,118170.0,118160.0,0.06024855]
[1753569248406,6.14209532,118170.0,118160.0,0.06024855]
[1753569248936,6.14409532,118170.0,118160.0,0.06024855]
[1753569251206,6.14209532,118170.0,118160.0,0.06024855]
[1753569251827,5.82567225,118170.0,118160.0,0.06024855]
[1753569252045,6.14209532,118170.0,118160.0,0.06024855]
[1753569252652,6.14409532,118170.0,118160.0,0.06024855]
[1753569253526,5.82767225,118170.0,118160.0,0.06024855]
[1753569253750,6.14409532,118170.0,118160.0,0.06024855]
[1753569254439,5.82767225,118170.0,118160.0,0.06024855]
[1753569254660,0.80032225,118170.0,118160.0,0.37667162]
[1753569254916,0.6449516,118170.0,118160.0,0.37667162]
[1753569255143,0.7019543,118170.0,118160.0,0.37667162]
[1753569255377,0.68610097,118170.0,118160.0,0.37667162]
[1753569255814,0.66861195,118170.0,118160.0,0.37667162]
[1753569259768,0.66853195,118170.0,118160.0,0.37667162]
[1753569270361,0.52717195,118170.0,118160.0,0.37667162]
[1753569270564,0.66829195,118170.0,118160.0,0.37667162]
[1753569271194,0.66829195,118170.0,118160.0,0.06024855]
[1753569271426,0.69126195,118170.0,118160.0,0.37667162]
[1753569272429,0.69337195,118170.0,118160.0,0.35394162]
[1753569274116,0.69337195,118170.0,118160.0,0.03234855]
[1753569274349,0.69337195,118170.0,118160.0,0.34877162]
[1753569274567,1.01280502,118170.0,118160.0,0.00024855]
[1753569275469,0.69638195,118170.0,118160.0,0.00024855]
[1753569280783,0.69337195,118170.0,118160.0,0.00024855]
[1753569281525,0.71865353,118170.0,118160.0,0.00024855]
[1753569281979,0.71865353,118170.0,118160.0,0.01554855]